[Event "*** Titled Tuesday Blitz"]
[Site "Chess.com"]
[Date "2019.11.05"]
[Round "6"]
[White "Sajkochess"]
[Black "saraswathii"]
[Result "0-1"]
[WhiteElo "2316"]
[BlackElo "2224"]
[TimeControl "180+2"]
[EndTime "14:22:22 PST"]
[Termination "saraswathii won by resignation"]

1. e4 {[%clk 0:03:01.9]} 1... c5 {[%clk 0:02:54.6]} 2. Nf3 {[%clk 0:03:02.6]}
2... e6 {[%clk 0:02:54.5]} 3. d4 {[%clk 0:03:03.8]} 3... cxd4 {[%clk 0:02:54.8]}
4. Nxd4 {[%clk 0:03:05.7]} 4... Nf6 {[%clk 0:02:54.7]} 5. Nc3 {[%clk 0:03:04.4]}
5... Nc6 {[%clk 0:02:54.3]} 6. g3 {[%clk 0:03:03.5]} 6... d5 {[%clk 0:02:49.9]}
7. exd5 {[%clk 0:03:03.5]} 7... Nxd5 {[%clk 0:02:24.2]} 8. Bg2 {[%clk
0:03:02.8]} 8... Bb4 {[%clk 0:02:19.7]} 9. O-O {[%clk 0:02:59.8]} 9... O-O
{[%clk 0:02:16.1]} 10. Nxd5 {[%clk 0:02:50.7]} 10... exd5 {[%clk 0:02:11.6]} 11.
c3 {[%clk 0:02:49.2]} 11... Bc5 {[%clk 0:02:07.6]} 12. Nb3 {[%clk 0:02:49]}
12... Bb6 {[%clk 0:02:03.6]} 13. Qxd5 {[%clk 0:02:41.4]} 13... Be6 {[%clk
0:02:00.3]} 14. Qxd8 {[%clk 0:02:40.7]} 14... Raxd8 {[%clk 0:01:57.4]} 15. Bf4
{[%clk 0:02:39.3]} 15... Rfe8 {[%clk 0:01:54.4]} 16. Rad1 {[%clk 0:02:37.4]}
16... a5 {[%clk 0:01:49.8]} 17. Rfe1 {[%clk 0:02:23.9]} 17... a4 {[%clk
0:01:42.5]} 18. Nc1 {[%clk 0:02:24.8]} 18... a3 {[%clk 0:01:38.2]} 19. b3 {[%clk
0:02:12.3]} 19... Ba5 {[%clk 0:01:34.9]} 20. b4 {[%clk 0:02:09.6]} 20... Bb6
{[%clk 0:01:29.3]} 21. Be3 {[%clk 0:01:56.2]} 21... Bxe3 {[%clk 0:01:26.4]} 22.
fxe3 {[%clk 0:01:57]} 22... Bg4 {[%clk 0:01:26.2]} 23. Rxd8 {[%clk 0:01:46]}
23... Rxd8 {[%clk 0:01:24.6]} 24. Bxc6 {[%clk 0:01:39.1]} 24... bxc6 {[%clk
0:01:21.3]} 25. Nb3 {[%clk 0:01:40.2]} 25... Rd3 {[%clk 0:01:16.4]} 26. Kf2
{[%clk 0:01:25.6]} 26... Rxc3 {[%clk 0:01:14.3]} 27. Rc1 {[%clk 0:01:26.3]}
27... Rxc1 {[%clk 0:01:10.4]} 28. Nxc1 {[%clk 0:01:28.2]} 28... Kf8 {[%clk
0:01:05.9]} 29. Ke1 {[%clk 0:01:18.1]} 29... Ke7 {[%clk 0:00:59]} 30. Kd2 {[%clk
0:01:18.9]} 30... Kd6 {[%clk 0:00:52.8]} 31. Kc3 {[%clk 0:01:11.1]} 31... Be6
{[%clk 0:00:48.3]} 32. Kd4 {[%clk 0:00:43]} 32... f6 {[%clk 0:00:43]} 33. Kc3
{[%clk 0:00:21.4]} 33... Ke5 {[%clk 0:00:33.5]} 34. b5 {[%clk 0:00:21.3]} 34...
cxb5 {[%clk 0:00:31.2]} 35. Kb4 {[%clk 0:00:21.4]} 35... Bc4 {[%clk 0:00:24.7]}
36. Kxa3 {[%clk 0:00:21]} 36... Ke4 {[%clk 0:00:25.7]} 37. Kb4 {[%clk
0:00:22.3]} 37... Bf1 {[%clk 0:00:24.9]} 38. Nb3 {[%clk 0:00:05.2]} 38... Kxe3
{[%clk 0:00:24]} 39. Na5 {[%clk 0:00:03.5]} 39... Kf2 {[%clk 0:00:21]} 40. Nc6
{[%clk 0:00:04]} 40... Kg2 {[%clk 0:00:21.6]} 41. Nd4 {[%clk 0:00:05.2]} 41...
Kxh2 {[%clk 0:00:22.7]} 42. Nxb5 {[%clk 0:00:06.6]} 42... Kxg3 {[%clk
0:00:23.6]} 43. a4 {[%clk 0:00:07.5]} 43... Bg2 {[%clk 0:00:22.7]} 44. a5 {[%clk
0:00:08.7]} 44... Bb7 {[%clk 0:00:23.2]} 45. Kc5 {[%clk 0:00:09.5]} 45... h5
{[%clk 0:00:20.3]} 46. Kb6 {[%clk 0:00:10.6]} 46... Bc8 {[%clk 0:00:21.4]} 47.
Nd6 {[%clk 0:00:11.1]} 47... Be6 {[%clk 0:00:20.3]} 48. a6 {[%clk 0:00:11.1]}
48... Bd5 {[%clk 0:00:21.3]} 49. a7 {[%clk 0:00:11.9]} 49... Ba8 {[%clk
0:00:21.4]} 50. Ne8 {[%clk 0:00:11.2]} 50... h4 {[%clk 0:00:21.5]} 51. Nc7
{[%clk 0:00:12.2]} 51... Be4 {[%clk 0:00:22.1]} 52. Kc5 {[%clk 0:00:11.7]} 52...
h3 {[%clk 0:00:22.7]} 53. Nd5 {[%clk 0:00:12]} 53... Bxd5 {[%clk 0:00:20]} 54.
Kxd5 {[%clk 0:00:12.7]} 54... h2 {[%clk 0:00:21.3]} 0-1

[Event "*** Titled Tuesday Blitz"]
[Site "Chess.com"]
[Date "2019.11.05"]
[Round "6"]
[White "kuli4ik"]
[Black "1995Tiger"]
[Result "0-1"]
[WhiteElo "2814"]
[BlackElo "2148"]
[TimeControl "180+2"]
[EndTime "14:22:26 PST"]
[Termination "1995Tiger won by resignation"]

1. d4 {[%clk 0:03:01.9]} 1... d5 {[%clk 0:02:59.8]} 2. Nf3 {[%clk 0:02:55.8]}
2... Nf6 {[%clk 0:03:00.2]} 3. Bf4 {[%clk 0:02:57.2]} 3... e6 {[%clk 0:02:59.2]}
4. e3 {[%clk 0:02:58.1]} 4... c5 {[%clk 0:03:00.4]} 5. dxc5 {[%clk 0:02:59.5]}
5... Bxc5 {[%clk 0:02:59.8]} 6. Be2 {[%clk 0:03:01.1]} 6... O-O {[%clk
0:03:00.3]} 7. O-O {[%clk 0:03:02]} 7... Nc6 {[%clk 0:03:01.5]} 8. c4 {[%clk
0:03:03.3]} 8... dxc4 {[%clk 0:03:01.1]} 9. Bxc4 {[%clk 0:03:03.7]} 9... Qe7
{[%clk 0:03:00.3]} 10. Nc3 {[%clk 0:03:02.5]} 10... a6 {[%clk 0:03:00.1]} 11.
Bg5 {[%clk 0:02:52]} 11... b5 {[%clk 0:02:55.8]} 12. Bb3 {[%clk 0:02:49]} 12...
Bb7 {[%clk 0:02:45.9]} 13. Qe2 {[%clk 0:02:48.2]} 13... h6 {[%clk 0:02:40.2]}
14. Bh4 {[%clk 0:02:47.6]} 14... Bb6 {[%clk 0:02:34.7]} 15. Ne4 {[%clk 0:02:42]}
15... g5 {[%clk 0:02:27.5]} 16. Nxf6+ {[%clk 0:02:40.9]} 16... Qxf6 {[%clk
0:02:29.4]} 17. Bg3 {[%clk 0:02:42.6]} 17... Rfd8 {[%clk 0:02:30]} 18. Rfd1
{[%clk 0:02:41.8]} 18... Na5 {[%clk 0:02:18.5]} 19. Ne5 {[%clk 0:02:33.9]} 19...
Nxb3 {[%clk 0:02:13.7]} 20. axb3 {[%clk 0:02:35.8]} 20... Bc7 {[%clk 0:01:58]}
21. Ng4 {[%clk 0:02:09.7]} 21... Qe7 {[%clk 0:01:48.3]} 22. Nxh6+ {[%clk
0:01:47.7]} 22... Kg7 {[%clk 0:01:47.2]} 23. Ng4 {[%clk 0:01:43.7]} 23... Bxg3
{[%clk 0:01:37.5]} 24. hxg3 {[%clk 0:01:42.8]} 24... Qb4 {[%clk 0:01:23.2]} 25.
Ne5 {[%clk 0:01:34.7]} 25... Qe4 {[%clk 0:01:12.3]} 26. Nf3 {[%clk 0:01:05.6]}
26... Rxd1+ {[%clk 0:01:12.7]} 27. Rxd1 {[%clk 0:01:05.3]} 27... Bd5 {[%clk
0:01:14.3]} 28. b4 {[%clk 0:00:57]} 28... Rc8 {[%clk 0:01:12.9]} 29. Qf1 {[%clk
0:00:38]} 29... g4 {[%clk 0:00:40.3]} 30. Nd4 {[%clk 0:00:29.5]} 30... Rh8
{[%clk 0:00:34.9]} 31. Rc1 {[%clk 0:00:12.6]} 31... Qh7 {[%clk 0:00:32.6]} 32.
f4 {[%clk 0:00:13.4]} 32... Qh2+ {[%clk 0:00:15.2]} 33. Kf2 {[%clk 0:00:14.2]}
33... Rh3 {[%clk 0:00:16.3]} 34. Ne2 {[%clk 0:00:15.6]} 34... Bc4 {[%clk
0:00:17.1]} 35. Qg1 {[%clk 0:00:15.4]} 35... Bxe2 {[%clk 0:00:16.5]} 36. Kxe2
{[%clk 0:00:15.6]} 36... Qxg1 {[%clk 0:00:08.4]} 37. Rxg1 {[%clk 0:00:15.9]}
37... Rh2 {[%clk 0:00:09.8]} 38. Kf2 {[%clk 0:00:16]} 38... Rh8 {[%clk
0:00:08.7]} 39. Ra1 {[%clk 0:00:16.5]} 39... Rc8 {[%clk 0:00:08.8]} 40. Rxa6
{[%clk 0:00:14.2]} 40... Rc2+ {[%clk 0:00:09.4]} 41. Kf1 {[%clk 0:00:14.6]}
41... Rxb2 {[%clk 0:00:11.3]} 42. Rb6 {[%clk 0:00:12.9]} 42... Rxb4 {[%clk
0:00:12.4]} 43. Rb7 {[%clk 0:00:13.9]} 43... Rb2 {[%clk 0:00:13.4]} 44. e4
{[%clk 0:00:13.5]} 44... Kf6 {[%clk 0:00:14.3]} 45. e5+ {[%clk 0:00:14.4]} 45...
Kg6 {[%clk 0:00:15.1]} 46. Rb8 {[%clk 0:00:15.3]} 46... b4 {[%clk 0:00:16.1]}
47. Kg1 {[%clk 0:00:16.6]} 47... b3 {[%clk 0:00:17.2]} 48. Kh2 {[%clk
0:00:18.1]} 48... Kf5 {[%clk 0:00:18.3]} 49. Rb7 {[%clk 0:00:19.4]} 49... Ke4
{[%clk 0:00:18.3]} 50. Rxf7 {[%clk 0:00:20.1]} 50... Rd2 {[%clk 0:00:17.7]} 51.
Rb7 {[%clk 0:00:21]} 51... b2 {[%clk 0:00:18.6]} 52. Rb8 {[%clk 0:00:22]} 52...
Kd3 {[%clk 0:00:19]} 53. Rb6 {[%clk 0:00:17.1]} 53... Kc2 {[%clk 0:00:18.5]} 54.
Rc6+ {[%clk 0:00:18.2]} 54... Kd1 {[%clk 0:00:19.3]} 55. Rb6 {[%clk 0:00:18.8]}
55... Kc1 {[%clk 0:00:20.6]} 56. Kg1 {[%clk 0:00:18]} 56... b1=Q {[%clk
0:00:20.5]} 57. Rxb1+ {[%clk 0:00:18.9]} 57... Kxb1 {[%clk 0:00:22.4]} 0-1

[Event "*** Titled Tuesday Blitz"]
[Site "Chess.com"]
[Date "2019.11.05"]
[Round "6"]
[White "NemtsevIgor"]
[Black "GasconJR"]
[Result "0-1"]
[WhiteElo "2285"]
[BlackElo "2470"]
[TimeControl "180+2"]
[EndTime "14:22:34 PST"]
[Termination "GasconJR won by resignation"]

1. e4 {[%clk 0:03:01.9]} 1... c5 {[%clk 0:03:00.3]} 2. Nf3 {[%clk 0:02:59.6]}
2... d6 {[%clk 0:03:01.5]} 3. d3 {[%clk 0:03:00.7]} 3... Nc6 {[%clk 0:03:02.3]}
4. g3 {[%clk 0:03:00.8]} 4... g6 {[%clk 0:03:03.3]} 5. Bg2 {[%clk 0:03:02]} 5...
Bg7 {[%clk 0:03:03.8]} 6. O-O {[%clk 0:03:03.1]} 6... e5 {[%clk 0:03:04.6]} 7.
c3 {[%clk 0:03:02.3]} 7... Nge7 {[%clk 0:03:05.2]} 8. Nbd2 {[%clk 0:03:03.4]}
8... O-O {[%clk 0:03:05.9]} 9. Nh4 {[%clk 0:03:02.5]} 9... d5 {[%clk 0:02:50.4]}
10. Qe2 {[%clk 0:02:57.9]} 10... b6 {[%clk 0:02:25.6]} 11. Re1 {[%clk
0:02:38.5]} 11... Bb7 {[%clk 0:02:21.5]} 12. a4 {[%clk 0:02:27.8]} 12... Qd7
{[%clk 0:02:19.7]} 13. exd5 {[%clk 0:02:22.7]} 13... Nxd5 {[%clk 0:02:20.5]} 14.
Nc4 {[%clk 0:02:23.6]} 14... Rad8 {[%clk 0:02:19.2]} 15. Bg5 {[%clk 0:02:14.8]}
15... f6 {[%clk 0:02:19.3]} 16. Bd2 {[%clk 0:02:11.3]} 16... Nde7 {[%clk
0:02:15.6]} 17. Bf1 {[%clk 0:01:42.4]} 17... Kh8 {[%clk 0:02:07.4]} 18. Be3
{[%clk 0:01:39.2]} 18... g5 {[%clk 0:01:53.4]} 19. Nf3 {[%clk 0:01:33.5]} 19...
Ng6 {[%clk 0:01:51.7]} 20. Red1 {[%clk 0:01:27.2]} 20... Qe8 {[%clk 0:01:35.2]}
21. Bg2 {[%clk 0:01:26.3]} 21... Rf7 {[%clk 0:01:23.4]} 22. Nfd2 {[%clk
0:01:17.2]} 22... Rfd7 {[%clk 0:01:15.8]} 23. Ne4 {[%clk 0:01:18]} 23... h6
{[%clk 0:01:14.8]} 24. Bh3 {[%clk 0:01:12.8]} 24... Rd5 {[%clk 0:00:52]} 25. a5
{[%clk 0:00:39.8]} 25... b5 {[%clk 0:00:37.4]} 26. a6 {[%clk 0:00:41]} 26... Ba8
{[%clk 0:00:29.4]} 27. Na5 {[%clk 0:00:40.8]} 27... Nxa5 {[%clk 0:00:25.4]} 28.
Rxa5 {[%clk 0:00:41.3]} 28... Qe7 {[%clk 0:00:25]} 29. Qh5 {[%clk 0:00:39.5]}
29... Nf8 {[%clk 0:00:23.6]} 30. Rxb5 {[%clk 0:00:34]} 30... c4 {[%clk
0:00:21.4]} 31. Rxd5 {[%clk 0:00:34]} 31... Bxd5 {[%clk 0:00:21.8]} 32. Bg2
{[%clk 0:00:31.3]} 32... Bf7 {[%clk 0:00:22.6]} 33. Qe2 {[%clk 0:00:31.5]} 33...
f5 {[%clk 0:00:24]} 34. Nc5 {[%clk 0:00:30.9]} 34... f4 {[%clk 0:00:24.3]} 35.
dxc4 {[%clk 0:00:21.3]} 35... Rxd1+ {[%clk 0:00:23.9]} 36. Qxd1 {[%clk
0:00:22.1]} 36... fxe3 {[%clk 0:00:25.8]} 37. Ne4 {[%clk 0:00:21.5]} 37... exf2+
{[%clk 0:00:26.6]} 38. Nxf2 {[%clk 0:00:22.7]} 38... Nd7 {[%clk 0:00:20.2]} 39.
Qa4 {[%clk 0:00:23.4]} 39... Nb6 {[%clk 0:00:19.9]} 40. Qc6 {[%clk 0:00:24.1]}
40... Bxc4 {[%clk 0:00:18.8]} 41. h4 {[%clk 0:00:22.1]} 41... Bxa6 {[%clk
0:00:17.9]} 42. Ne4 {[%clk 0:00:22.2]} 42... Bb7 {[%clk 0:00:17.2]} 43. Qb5
{[%clk 0:00:21.5]} 43... Bxe4 {[%clk 0:00:17.1]} 44. Bxe4 {[%clk 0:00:22.6]}
44... Bf8 {[%clk 0:00:18.6]} 45. Qc6 {[%clk 0:00:20.3]} 45... Qc5+ {[%clk
0:00:19.2]} 46. Qxc5 {[%clk 0:00:20.6]} 46... Bxc5+ {[%clk 0:00:21.1]} 47. Kg2
{[%clk 0:00:22]} 47... a5 {[%clk 0:00:19.3]} 48. hxg5 {[%clk 0:00:23.1]} 48...
hxg5 {[%clk 0:00:21.2]} 49. Bc6 {[%clk 0:00:24]} 49... Kg7 {[%clk 0:00:22.3]}
50. Kf3 {[%clk 0:00:25]} 50... Nc4 {[%clk 0:00:20.8]} 51. b4 {[%clk 0:00:25.6]}
51... axb4 {[%clk 0:00:21.6]} 52. cxb4 {[%clk 0:00:27.3]} 52... Bxb4 {[%clk
0:00:23.1]} 53. Kg4 {[%clk 0:00:26.9]} 53... Kf6 {[%clk 0:00:23.9]} 54. Be4
{[%clk 0:00:26.2]} 54... Nd6 {[%clk 0:00:23.6]} 55. Bc2 {[%clk 0:00:27]} 55...
Be1 {[%clk 0:00:24.6]} 56. Kf3 {[%clk 0:00:27.9]} 56... e4+ {[%clk 0:00:25.5]}
57. Kg4 {[%clk 0:00:26.1]} 57... e3 {[%clk 0:00:24.5]} 58. Kf3 {[%clk
0:00:26.8]} 58... Bf2 {[%clk 0:00:25.5]} 59. g4 {[%clk 0:00:27.5]} 59... Ke5
{[%clk 0:00:25.6]} 60. Ke2 {[%clk 0:00:27.5]} 60... Nb5 {[%clk 0:00:26.6]} 61.
Bf5 {[%clk 0:00:25.9]} 61... Nd4+ {[%clk 0:00:27.5]} 62. Kd3 {[%clk 0:00:25.8]}
62... e2 {[%clk 0:00:27.1]} 0-1

[Event "*** Titled Tuesday Blitz"]
[Site "Chess.com"]
[Date "2019.11.05"]
[Round "6"]
[White "GadimbayliA"]
[Black "AndrBaryshpolets"]
[Result "1/2-1/2"]
[WhiteElo "2928"]
[BlackElo "2789"]
[TimeControl "180+2"]
[EndTime "14:22:38 PST"]
[Termination "Game drawn by agreement"]

1. e4 {[%clk 0:03:01.9]} 1... e6 {[%clk 0:03:00.5]} 2. d4 {[%clk 0:03:02.4]}
2... d5 {[%clk 0:03:02.2]} 3. Nd2 {[%clk 0:03:03.6]} 3... c5 {[%clk 0:03:02.7]}
4. exd5 {[%clk 0:03:04.6]} 4... Qxd5 {[%clk 0:03:03.3]} 5. Ngf3 {[%clk
0:03:05.7]} 5... cxd4 {[%clk 0:03:04.2]} 6. Bc4 {[%clk 0:03:06.9]} 6... Qd7
{[%clk 0:03:03.8]} 7. O-O {[%clk 0:03:07.5]} 7... Nc6 {[%clk 0:03:03.9]} 8. Nb3
{[%clk 0:03:08.3]} 8... a6 {[%clk 0:03:04]} 9. Nbxd4 {[%clk 0:03:09.3]} 9...
Nxd4 {[%clk 0:03:05.7]} 10. Nxd4 {[%clk 0:03:11.2]} 10... Nf6 {[%clk 0:03:03.2]}
11. Re1 {[%clk 0:03:11.3]} 11... b5 {[%clk 0:02:53.8]} 12. Bb3 {[%clk
0:02:50.3]} 12... Bb7 {[%clk 0:02:44.6]} 13. Bg5 {[%clk 0:02:45.2]} 13... Ne4
{[%clk 0:02:37.3]} 14. Bf4 {[%clk 0:02:29.8]} 14... Bd6 {[%clk 0:02:17.6]} 15.
Nxe6 {[%clk 0:02:21.2]} 15... fxe6 {[%clk 0:01:52.2]} 16. Bxd6 {[%clk
0:02:21.6]} 16... O-O-O {[%clk 0:01:16.8]} 17. Be5 {[%clk 0:01:39.3]} 17... Qf7
{[%clk 0:00:57.5]} 18. Qg4 {[%clk 0:00:58.9]} 18... Qxf2+ {[%clk 0:00:52.1]} 19.
Kh1 {[%clk 0:01:00]} 19... Qxe1+ {[%clk 0:00:25.8]} 20. Rxe1 {[%clk 0:00:58]}
20... Nf2+ {[%clk 0:00:27.4]} 21. Kg1 {[%clk 0:00:59]} 21... Nxg4 {[%clk
0:00:28.8]} 22. Bxe6+ {[%clk 0:01:00.5]} 22... Rd7 {[%clk 0:00:30.5]} 23. Bxg4
{[%clk 0:01:01.8]} 23... Re8 {[%clk 0:00:32.2]} 24. Rd1 {[%clk 0:00:42.4]} 24...
Bc6 {[%clk 0:00:25.8]} 25. Bxg7 {[%clk 0:00:41.2]} 25... Re7 {[%clk 0:00:18.7]}
26. Bc3 {[%clk 0:00:26.1]} 26... Kb7 {[%clk 0:00:13.8]} 27. Bxd7 {[%clk
0:00:26.8]} 27... Rxd7 {[%clk 0:00:15.7]} 28. Re1 {[%clk 0:00:19.8]} 28... Bd5
{[%clk 0:00:15.5]} 29. a3 {[%clk 0:00:20.8]} 29... Kc6 {[%clk 0:00:15.8]} 30. h3
{[%clk 0:00:13.8]} 30... Rf7 {[%clk 0:00:16.3]} 31. Bd4 {[%clk 0:00:12]} 31...
a5 {[%clk 0:00:15.2]} 32. c3 {[%clk 0:00:13.2]} 32... a4 {[%clk 0:00:16.1]} 33.
Re5 {[%clk 0:00:13.4]} 33... Kd6 {[%clk 0:00:08.5]} 34. Re1 {[%clk 0:00:09.6]}
34... Kc6 {[%clk 0:00:09.9]} 35. Re2 {[%clk 0:00:08]} 35... Kd6 {[%clk
0:00:11.1]} 36. Kh2 {[%clk 0:00:06.5]} 36... Kc6 {[%clk 0:00:12.6]} 37. g4
{[%clk 0:00:07.1]} 37... Rf3 {[%clk 0:00:12.1]} 38. Rf2 {[%clk 0:00:07.7]} 38...
Rxf2+ {[%clk 0:00:13.1]} 39. Bxf2 {[%clk 0:00:09.6]} 39... Be4 {[%clk
0:00:14.4]} 40. Kg3 {[%clk 0:00:10.8]} 40... Kd5 {[%clk 0:00:16]} 41. h4 {[%clk
0:00:12]} 41... Bc2 {[%clk 0:00:16.6]} 42. Kf4 {[%clk 0:00:13.2]} 42... Ke6
{[%clk 0:00:15.5]} 43. Kg5 {[%clk 0:00:11.8]} 43... Kf7 {[%clk 0:00:14.8]} 44.
Kh6 {[%clk 0:00:11.8]} 44... Kg8 {[%clk 0:00:13.7]} 45. g5 {[%clk 0:00:11.4]}
45... Bd1 {[%clk 0:00:12.5]} 46. h5 {[%clk 0:00:11.8]} 46... Bc2 {[%clk
0:00:12.7]} 47. g6 {[%clk 0:00:13.1]} 47... hxg6 {[%clk 0:00:13.9]} 48. hxg6
{[%clk 0:00:13.7]} 48... Bd3 {[%clk 0:00:15.3]} 49. Bd4 {[%clk 0:00:13.9]} 49...
Bc4 {[%clk 0:00:16.7]} 50. Kg5 {[%clk 0:00:15]} 50... Bd3 {[%clk 0:00:18.3]} 51.
Kf6 {[%clk 0:00:12.4]} 51... Bc2 {[%clk 0:00:16.9]} 52. g7 {[%clk 0:00:12.4]}
52... Bd3 {[%clk 0:00:18.4]} 53. Ke6 {[%clk 0:00:11.9]} 53... Bc4+ {[%clk
0:00:19.4]} 54. Kd6 {[%clk 0:00:13.3]} 54... Kf7 {[%clk 0:00:20.3]} 55. Kc5
{[%clk 0:00:14]} 55... Kg8 {[%clk 0:00:21.3]} 56. Kd6 {[%clk 0:00:15.1]} 56...
Kf7 {[%clk 0:00:22.7]} 57. Kd7 {[%clk 0:00:16.5]} 57... Kg8 {[%clk 0:00:24.1]}
58. Ke7 {[%clk 0:00:18]} 58... Bd3 {[%clk 0:00:24.2]} 59. c4 {[%clk 0:00:13.2]}
59... Bxc4 {[%clk 0:00:22.2]} 60. Kd6 {[%clk 0:00:15.1]} 60... Be2 {[%clk
0:00:22.9]} 61. Kc5 {[%clk 0:00:17]} 61... Bf1 {[%clk 0:00:24.2]} 1/2-1/2

[Event "*** Titled Tuesday Blitz"]
[Site "Chess.com"]
[Date "2019.11.05"]
[Round "6"]
[White "Alexander_Zubov"]
[Black "Shield12"]
[Result "1/2-1/2"]
[WhiteElo "2946"]
[BlackElo "2811"]
[TimeControl "180+2"]
[EndTime "14:22:51 PST"]
[Termination "Game drawn by agreement"]

1. d4 {[%clk 0:03:01.9]} 1... Nf6 {[%clk 0:03:01]} 2. Nf3 {[%clk 0:03:01.4]}
2... e6 {[%clk 0:03:02]} 3. c4 {[%clk 0:03:01.9]} 3... Bb4+ {[%clk 0:03:02.3]}
4. Nbd2 {[%clk 0:03:01.9]} 4... b6 {[%clk 0:03:03.2]} 5. e3 {[%clk 0:02:58.3]}
5... Bb7 {[%clk 0:03:03.9]} 6. Bd3 {[%clk 0:02:59]} 6... O-O {[%clk 0:03:02.4]}
7. a3 {[%clk 0:02:58]} 7... Bxd2+ {[%clk 0:02:58.7]} 8. Qxd2 {[%clk 0:02:55.6]}
8... d6 {[%clk 0:02:58.4]} 9. b4 {[%clk 0:02:51.6]} 9... a5 {[%clk 0:02:58.7]}
10. Bb2 {[%clk 0:02:49.9]} 10... axb4 {[%clk 0:02:58.8]} 11. axb4 {[%clk
0:02:51]} 11... Rxa1+ {[%clk 0:03:00.7]} 12. Bxa1 {[%clk 0:02:52.4]} 12... Nbd7
{[%clk 0:03:02.6]} 13. Qc2 {[%clk 0:02:47.5]} 13... c5 {[%clk 0:03:02.7]} 14.
dxc5 {[%clk 0:02:39.3]} 14... dxc5 {[%clk 0:03:03.5]} 15. b5 {[%clk 0:02:18.2]}
15... Qe7 {[%clk 0:03:02.6]} 16. Nd2 {[%clk 0:02:11.4]} 16... h6 {[%clk
0:02:50.3]} 17. O-O {[%clk 0:02:10.6]} 17... Rd8 {[%clk 0:02:43.9]} 18. Bc3
{[%clk 0:02:06]} 18... Nf8 {[%clk 0:02:37.4]} 19. Ra1 {[%clk 0:02:00.6]} 19...
Ra8 {[%clk 0:02:36.6]} 20. Rd1 {[%clk 0:02:00.8]} 20... Rd8 {[%clk 0:02:33.1]}
21. f3 {[%clk 0:01:58.1]} 21... e5 {[%clk 0:02:32.8]} 22. Be2 {[%clk 0:01:56.7]}
22... Ng6 {[%clk 0:02:17.8]} 23. Nb1 {[%clk 0:01:53.4]} 23... Rxd1+ {[%clk
0:02:16.7]} 24. Qxd1 {[%clk 0:01:55]} 24... Ne8 {[%clk 0:02:11.4]} 25. Be1
{[%clk 0:01:49]} 25... Nd6 {[%clk 0:02:11]} 26. Nc3 {[%clk 0:01:49.6]} 26... Qe6
{[%clk 0:02:08.1]} 27. Qa1 {[%clk 0:01:30.9]} 27... Ne7 {[%clk 0:01:56.1]} 28.
e4 {[%clk 0:01:24.6]} 28... Nxc4 {[%clk 0:01:47.3]} 29. Qa7 {[%clk 0:01:24.5]}
29... Na5 {[%clk 0:01:47.4]} 30. Qb8+ {[%clk 0:01:15.2]} 30... Kh7 {[%clk
0:01:42.8]} 31. Bf1 {[%clk 0:01:04]} 31... Nc8 {[%clk 0:01:37.2]} 32. Na4 {[%clk
0:00:57.9]} 32... Qe7 {[%clk 0:01:07.2]} 33. Nxb6 {[%clk 0:00:51.8]} 33... Nxb6
{[%clk 0:01:05.8]} 34. Bxa5 {[%clk 0:00:53.3]} 34... Na4 {[%clk 0:01:02.3]} 35.
b6 {[%clk 0:00:51]} 35... f6 {[%clk 0:00:52.1]} 36. Qc7 {[%clk 0:00:38.3]} 36...
Qxc7 {[%clk 0:00:41.5]} 37. bxc7 {[%clk 0:00:40.2]} 37... Nb2 {[%clk 0:00:40.1]}
38. Bb6 {[%clk 0:00:40.8]} 38... c4 {[%clk 0:00:39.1]} 39. Ba5 {[%clk
0:00:40.8]} 39... Nd3 {[%clk 0:00:37.9]} 40. Be2 {[%clk 0:00:39.8]} 40... Kg6
{[%clk 0:00:38]} 41. Bd1 {[%clk 0:00:39]} 41... Kf7 {[%clk 0:00:38.8]} 42. Ba4
{[%clk 0:00:39.9]} 42... Ke7 {[%clk 0:00:31.1]} 43. Bb5 {[%clk 0:00:34.9]} 43...
Nb2 {[%clk 0:00:19.5]} 44. Bc3 {[%clk 0:00:33.2]} 44... Nd1 {[%clk 0:00:19.8]}
45. Bb4+ {[%clk 0:00:33]} 45... Ke6 {[%clk 0:00:21.2]} 46. Bxc4+ {[%clk
0:00:28.2]} 46... Kd7 {[%clk 0:00:21.9]} 47. Be2 {[%clk 0:00:24.6]} 47... Ne3
{[%clk 0:00:20.7]} 48. Ba5 {[%clk 0:00:19.6]} 48... Nc2 {[%clk 0:00:19.8]} 49.
Bb5+ {[%clk 0:00:20.4]} 49... Kc8 {[%clk 0:00:21]} 50. Bc4 {[%clk 0:00:21.5]}
50... Kd7 {[%clk 0:00:21.8]} 51. Kf2 {[%clk 0:00:20.9]} 51... Nd4 {[%clk
0:00:22.5]} 52. Ke3 {[%clk 0:00:21.2]} 52... Ne6 {[%clk 0:00:23.6]} 53. Bxe6+
{[%clk 0:00:22.1]} 53... Kxe6 {[%clk 0:00:25.5]} 54. g3 {[%clk 0:00:23.4]} 54...
h5 {[%clk 0:00:25.2]} 55. h4 {[%clk 0:00:23.6]} 55... g6 {[%clk 0:00:26.2]} 56.
Kd3 {[%clk 0:00:24.7]} 56... f5 {[%clk 0:00:26.6]} 57. exf5+ {[%clk 0:00:24.7]}
57... gxf5 {[%clk 0:00:27.4]} 58. Ke3 {[%clk 0:00:26.6]} 58... e4 {[%clk
0:00:26]} 59. fxe4 {[%clk 0:00:26.9]} 59... fxe4 {[%clk 0:00:23.5]} 60. Kf4
{[%clk 0:00:28.4]} 60... Kf6 {[%clk 0:00:21.4]} 61. Bd2 {[%clk 0:00:28.2]} 61...
Bc8 {[%clk 0:00:19]} 62. Kxe4 {[%clk 0:00:29.2]} 62... Ke7 {[%clk 0:00:19.7]}
63. Kf4 {[%clk 0:00:28.6]} 63... Bg4 {[%clk 0:00:20.3]} 64. Kg5 {[%clk
0:00:27.1]} 64... Kd7 {[%clk 0:00:21.5]} 65. Bf4 {[%clk 0:00:29]} 65... Kc8
{[%clk 0:00:23.4]} 1/2-1/2